[Event "AUT Bundesliga 2024-25"]
[Site "Austria"]
[Date "2025.04.03"]
[Round "7.8"]
[White "Michalik, Peter"]
[Black "Vitouch, Anatol"]
[Result "1-0"]
[Annotator "TA"]
[ECO "A13"]
[WhiteElo "2563"]
[BlackElo "2271"]
[PlyCount "79"]
[EventDate "2024.08.28"]
[EventType "team-tourn"]
[EventCountry "AUT"]
[SourceTitle "playchess.com"]
[Source "ChessBase"]
[SourceQuality "1"]
[TimeControl "40/5400+30:1800+30"]

{[%evp 9,79,5,8,0,0,7,-13,-5,-5,0,6,-4,12,0,32,24,24,22,27,26,20,11,8,5,10,-16,-12,-8,-10,-37,-41,-35,5,16,20,10,47,43,52,50,62,50,91,84,143,148,157,148,157,154,160,161,196,183,183,192,185,167,164,169,172,164,206,193,202,190,182,185,264,254,345,350]} 1. Nf3 {[%emt 0:00:04]} d5 {[%emt 0:00:06]} 2. e3 {[%emt 0:00:15]} e6 {[%emt 0:00:25]} 3. b3 {[%emt 0:00:33]} Nf6 {[%emt 0:00:20]} 4. Bb2 {[%emt 0:00:09]} Be7 {[%emt 0:00:07]} 5. c4 {[%emt 0:00:44]} O-O {[%emt 0:00:08]} 6. Qc2 {[%emt 0:01:06] A13: English Opening: 1...e6.} c5 {[%emt 0:00:40]} 7. cxd5 {[%emt 0:00:30]} exd5 {[%emt 0:01:34]} 8. d4 {[%emt 0:00:21] The position is equal.} Nc6 {[%emt 0:08:36] [#]} 9. dxc5 $146 {[%emt 0:03:13]} (9. Be2 cxd4 10. Nxd4 Bb4+ 11. Kf1 Nxd4 12. Bxd4 Be6 13. a3 Rc8 14. Qb2 Be7 15. Nd2 {0-1 Johnson,B (1961)-Itkis,B (2317) Titled Tuesday intern op 11th Jul Early blitz 2023 (2)}) 9... Qa5+ {[%emt 0:02:33]} 10. Qc3 {[%emt 0:06:21]} Nb4 {[%emt 0:33:18][%cal Od5d4] ...d4! is the strong threat.} 11. Nbd2 $1 {[%emt 0:01:03]} (11. a3 $2 Nc2+ 12. Kd1 Qxc3 (12... Qxc5 $2 13. Qxc2 Qd6 14. Nc3 $18) 13. Nxc3 Nxa1 14. Bxa1 Bxc5 $19) 11... Qxc5 {[%emt 0:13:58]} (11... Bf5 $5 12. Rc1 Rac8 $16 (12... Qxa2 $2 13. Nd4 $18)) 12. Qxc5 {[%emt 0:01:51]} Bxc5 {[%emt 0:00:34]} 13. Rc1 {[%emt 0:00:05] Inhibits Nc2+.} Bb6 {[%emt 0:00:50]} 14. a3 {[%emt 0:02:19]} Nc6 {[%emt 0:00:14][%cal Od5d4]} 15. Bd3 {[%emt 0:05:00]} Be6 {[%emt 0:03:28]} 16. O-O {[%emt 0:03:05][%cal Be1g1,Bg1h2,Bh2g2][%mdl 32]} Rfd8 {[%emt 0:00:39]} 17. h3 {[%emt 0:06:02]} d4 {[%emt 0:04:08]} 18. e4 {[%emt 0:00:31]} Nh5 {[%emt 0:00:41]} 19. Rfe1 {[%emt 0:12:09]} Nf4 {[%emt 0:00:14]} 20. Bf1 {[%emt 0:00:04]} Rac8 {[%emt 0:03:00]} 21. Kh2 {[%emt 0:04:40]} d3 {[%emt 0:05:52]} 22. g3 {[%emt 0:01:46]} Ng6 {[%emt 0:02:19]} 23. Kg2 $1 {[%emt 0:01:09]} f6 {[%emt 0:03:47][%cal Bf7f6,Bf6e5][%mdl 32]} 24. Red1 {[%emt 0:04:34]} Rd7 {[%emt 0:04:23]} 25. Nc4 {[%emt 0:04:14]} Bxc4 {[%emt 0:00:10] White leaves nothing to chance now.} 26. Rxc4 {[%emt 0:00:33]} Rcd8 {[%emt 0:00:10] [#]} ({Black should try} 26... Re8 27. Rxd3 Rde7) 27. Rc3 $1 $16 {[%emt 0:01:28]} Nge5 {[%emt 0:04:23]} 28. Nxe5 {[%emt 0:02:14]} fxe5 {[%emt 0:00:04]} 29. Rcxd3 {[%emt 0:00:36]} Rxd3 {[%emt 0:00:49]} 30. Rxd3 {[%emt 0:00:34]} Nd4 {[%emt 0:02:01]} 31. Rd1 {[%emt 0:00:36]} Kf7 {[%emt 0:00:57]} 32. Bc4+ {[%emt 0:00:15]} Ke7 {[%emt 0:01:02]} 33. Bd5 {[%emt 0:01:28]} Rc8 {[%emt 0:01:51]} 34. Rc1 {[%emt 0:00:10]} ({But not} 34. Bxb7 $6 Rc2 35. Bxd4 Bxd4 $14) 34... Rxc1 {[%emt 0:00:32]} 35. Bxc1 $18 {[%emt 0:00:05] KBB-KBN. White is a pawn up.} Nc6 {[%emt 0:02:51]} 36. Kf1 {[%emt 0:05:35]} Kd6 {[%emt 0:00:35]} 37. Ke2 {[%emt 0:00:32]} Nd4+ {[%emt 0:00:30]} 38. Kd3 {[%emt 0:00:06]} Bd8 {[%emt 0:00:19]} (38... Nc6 $142 39. f4 Bf2) 39. f4 {[%emt 0:00:46] Hoping for fxe5+.} ({Weaker is} 39. Bxb7 Nxb3 40. Be3 Nc5+ 41. Bxc5+ Kxc5 $14) 39... Bf6 {[%emt 0:00:24]} 40. Be3 {[%emt 0:00:17] Weighted Error Value: White=0.04 (flawless) /Black=0.17 (very precise)   Mistake:       	---       	Black=2      Inaccurate:     	White=2     	Black=5      OK:         	White=17    	Black=12     Best:        	White=1     	---        Strong:       	White=3     	---} (40. Bxb7 Nxb3 41. Be3 Nc5+ 42. Bxc5+ Kxc5 $14) 1-0

[Event "AUT Bundesliga 2024-25"]
[Site "Austria"]
[Date "2025.04.03"]
[Round "7.9"]
[White "Rubil, Marko"]
[Black "Vogel, Roven"]
[Result "0-1"]
[Annotator "TA"]
[ECO "B12"]
[WhiteElo "2276"]
[BlackElo "2557"]
[PlyCount "78"]
[EventDate "2024.08.28"]
[EventType "team-tourn"]
[EventCountry "AUT"]
[SourceTitle "playchess.com"]
[Source "ChessBase"]
[SourceQuality "1"]
[TimeControl "40/5400+30:1800+30"]

{[%evp 12,78,0,0,-9,0,-14,-11,0,-45,-38,-43,7,-6,-2,-16,16,-7,0,0,0,0,-18,-25,-11,-50,-47,-40,-20,-90,-77,-90,-85,-162,-149,-247,-236,-219,-185,-217,-227,-211,-125,-138,-131,-166,-84,-104,-63,-142,-116,-98,-35,-517,-527,-679,-677,-799,-761,-771,-770,-6623,-5931,-2965,-1427,-1608,-1478,-29977,-29978]} 1. e4 {[%emt 0:00:03]} c6 {[%emt 0:00:08]} 2. d4 {[%emt 0:00:19]} d5 {[%emt 0:00:08]} 3. e5 {[%emt 0:00:09]} Bf5 {[%emt 0:00:12]} 4. h4 {[%emt 0:01:50]} h5 {[%emt 0:00:11]} 5. c4 {[%emt 0:00:19]} e6 {[%emt 0:00:09]} 6. Nc3 {[%emt 0:00:08]} Ne7 {[%emt 0:00:12]} 7. Bg5 {[%emt 0:03:11]} Qb6 {[%emt 0:00:20] B12: Caro-Kann: Advance Variation.} 8. Qd2 {[%emt 0:00:33]} Nd7 {[%emt 0:01:29]} 9. Nf3 {[%emt 0:05:22]} f6 {[%emt 0:06:57] The position is equal.} 10. exf6 {[%emt 0:04:29]} gxf6 {[%emt 0:00:09]} 11. Bf4 {[%emt 0:06:17]} Bg4 $146 {[%emt 0:09:07]} (11... Qa5 $15) (11... Qa5 12. c5 b6 13. cxb6 axb6 14. Bd3 Kf7 15. O-O b5 16. a4 b4 17. Ne2 Bxd3 18. Qxd3 {½-½ Brown,H (1869)-Deskin,G (2027) VW-Cup6 Gr18 email 2013}) 12. Bd3 {[%emt 0:16:06]} dxc4 {[%emt 0:06:57]} 13. Bxc4 {[%emt 0:04:10]} Nd5 {[%emt 0:00:38]} 14. Bg3 {[%emt 0:01:13]} Bxf3 {[%emt 0:16:52]} 15. gxf3 {[%emt 0:00:04]} Bh6 {[%emt 0:00:26]} 16. Qe2 {[%emt 0:01:24][%csl LRd5,LRe6]} O-O-O {[%emt 0:00:29] A sharp opening} 17. Rd1 {[%emt 0:06:28]} f5 {[%emt 0:08:10]} 18. Bd6 {[%emt 0:13:14]} Rhe8 {[%emt 0:02:43]} 19. Kf1 {[%emt 0:07:34]} Bf4 {[%emt 0:04:57]} (19... Nf8 {is interesting.} 20. Be5 Nf4 21. Na4 Qb4) 20. Ba3 {[%emt 0:05:36]} (20. Bxd5 $1 $11 Bxd6 (20... exd5 21. Be7 $14) 21. Bxe6) 20... N7f6 $17 {[%emt 0:10:04] Black has more active pieces.} 21. Rg1 {[%emt 0:02:58]} Qc7 {[%emt 0:02:05] Prevents Rg7} 22. Qc2 {[%emt 0:01:07]} (22. Bxd5 $17 {was necessary.} Nxd5 (22... exd5 23. Qd3 $14) 23. Nxd5 Rxd5 (23... exd5 24. Qd3 $11) 24. Rg8) 22... Kb8 {[%emt 0:03:55]} 23. Na4 {[%emt 0:05:30]} (23. Rg2 $17) 23... Rg8 {[%emt 0:02:47]} 24. Rxg8 {[%emt 0:03:59]} Rxg8 {[%emt 0:00:01]} 25. Nc5 {[%emt 0:00:13]} Qg7 {[%emt 0:00:58]} 26. Ke2 {[%emt 0:05:44] [#] Wards off Ne3} Bc7 {[%emt 0:06:34]} (26... Qg2 $1 $19 {Hoping for ...Ne3.} 27. Bxd5 Nxd5) 27. Re1 {[%emt 0:00:26]} (27. Nxe6 $2 Re8 28. Qxf5 Rxe6+ 29. Kd2 Re8 $19) 27... Qg2 {[%emt 0:05:08]} 28. Qb3 {[%emt 0:00:46][%csl Gc5][%cal Rb3b7]} Bb6 {[%emt 0:00:23]} (28... Nf4+ 29. Kd1 Bb6 30. Qe3 $17 (30. Nxe6 Nxe6 31. Bxe6 Rd8 $17)) (28... Nb6 $19 29. Bxe6 Re8) 29. Nxe6 {[%emt 0:01:03]} Re8 {[%emt 0:00:38][%csl LRd4,LRe6]} 30. Bd6+ {[%emt 0:00:05]} ({White should play} 30. Kd1 $1 $15 Qxf2 31. Re2 Qg1+ (31... Qxh4 32. Bd6+ Bc7 33. Rh2 $16) 32. Kc2) 30... Kc8 {[%emt 0:01:14] Chess con chili.} 31. Kd1 {[%emt 0:00:43] [#]} Qxf2 $40 {[%emt 0:02:03][%mdl 128] Black attacks Black has some attack.} (31... Ba5 $1 $17 {[%cal Ra5e1]} 32. Ba6 Bb6 (32... bxa6 33. Qb8+ Kd7 34. Nc5#)) 32. Qd3 $2 {[%emt 0:00:11][%mdl 8192] Now White is beyond hope.} (32. Re2 $1 $15 Qg1+ (32... Qxh4 $2 {perishes.} 33. Rh2 $18) 33. Kc2) 32... Qxb2 $19 {[%emt 0:00:58]} 33. Re5 {[%emt 0:01:42][%cal Oc4d5]} Ba5 {[%emt 0:01:05][%cal Of6e4]} 34. Ba3 {[%emt 0:02:42]} Nc3+ {[%emt 0:01:29] A dynamic duo of knights.} 35. Ke1 {[%emt 0:00:01]} Qxa3 {[%emt 0:00:14]} 36. Qxf5 {[%emt 0:01:21]} Nce4+ {[%emt 0:00:40]} ({Inferior is} 36... Nxa2+ 37. Kf2 Nd7 (37... Qb2+ $2 38. Re2 $18) 38. Rxa5 Qb2+ 39. Kg3 $11) 37. Kd1 {[%emt 0:01:21] [#]} Qe3 $1 {[%emt 0:02:17][%csl Ga5,Ge4][%cal Re3d2]} 38. Nc5+ {[%emt 0:00:35]} (38. Ng7+ Kc7) 38... Kc7 {[%emt 0:00:47]} 39. Nxe4 {[%emt 0:00:19]} Qxd4+ {[%emt 0:00:08] Weighted Error Value: White=0.85/Black=0.39  Loses game:     	White=1     	---        Mistake:       	White=4     	Black=4      Inaccurate:     	White=2     	Black=2      OK:         	White=8     	Black=9      Best:        	White=3     	Black=4} 0-1

[Event "AUT Bundesliga 2024-25"]
[Site "Austria"]
[Date "2025.04.03"]
[Round "7.10"]
[White "Votava, Jan"]
[Black "Kuthan, Andreas"]
[Result "1-0"]
[Annotator "TA"]
[ECO "E94"]
[WhiteElo "2455"]
[BlackElo "2136"]
[PlyCount "65"]
[EventDate "2024.08.28"]
[EventType "team-tourn"]
[EventCountry "AUT"]
[SourceTitle "playchess.com"]
[Source "ChessBase"]
[SourceQuality "1"]
[TimeControl "40/5400+30:1800+30"]

{[%evp 18,65,65,37,43,20,41,6,6,10,14,-10,-7,-7,7,3,113,118,112,27,31,20,37,36,59,55,54,43,72,71,72,72,75,71,71,70,76,80,122,126,176,174,195,208,201,216,219,220,339,351]} 1. d4 {[%emt 0:00:04]} Nf6 {[%emt 0:00:05]} 2. c4 {[%emt 0:00:06]} g6 {[%emt 0:00:05]} 3. Nc3 {[%emt 0:00:06]} Bg7 {[%emt 0:00:06]} 4. e4 {[%emt 0:00:14]} d6 {[%emt 0:00:07]} 5. Nf3 {[%emt 0:00:11]} O-O {[%emt 0:00:08]} 6. Be2 {[%emt 0:00:18]} e5 {[%emt 0:00:24]} 7. O-O {[%emt 0:00:19]} exd4 {[%emt 0:03:10]} 8. Nxd4 {[%emt 0:01:27]} Re8 {[%emt 0:00:06]} 9. f3 {[%emt 0:03:24]} c6 {[%emt 0:00:18]} 10. Kh1 {[%emt 0:09:03]} Nbd7 {[%emt 0:02:21] E94: King's Indian: Classical: 6 Be2 e5 7 0-0: Various Black 7th moves.} 11. Be3 {[%emt 0:08:41]} Nb6 {[%emt 0:12:41]} 12. Qd2 {[%emt 0:13:52]} d5 {[%emt 0:07:14] The position is equal.} 13. cxd5 {[%emt 0:06:18]} cxd5 {[%emt 0:00:25]} 14. Ndb5 {[%emt 0:02:23]} a6 {[%emt 0:30:02] Prevents a4.} 15. Na3 {[%emt 0:02:20]} Be6 $146 {[%emt 0:06:14][%cal Od5d4]} (15... Bd7 16. Rad1 dxe4 17. fxe4 Na4 18. e5 Rxe5 19. Nc4 Nxc3 20. Nxe5 Nxd1 21. Rxd1 Qe8 22. Nxd7 Nxd7 23. Qxd7 Qxe3 {½-½ Budisavljevic,L (2491)-Sasikiran,K (2604) Aimchess Play In op rapid 2023 (9)}) 16. Rad1 {[%emt 0:07:10]} Nc4 {[%emt 0:10:13]} (16... Qc7 $11) 17. Nxc4 $16 {[%emt 0:04:29]} dxc4 {[%emt 0:00:02] [#]} 18. Qxd8 {[%emt 0:03:22]} (18. e5 $1 $16 {[%cal Re5f6]} Qxd2 19. Rxd2) 18... Raxd8 $11 {[%emt 0:00:11]} 19. a4 {[%emt 0:01:01]} Nd7 {[%emt 0:04:54]} 20. f4 {[%emt 0:05:22] Dodges Ne5} Nb8 {[%emt 0:07:03]} 21. Rxd8 {[%emt 0:03:52]} Rxd8 {[%emt 0:00:01]} 22. f5 {[%emt 0:00:48]} gxf5 {[%emt 0:01:29]} 23. exf5 {[%emt 0:00:15]} Bd7 {[%emt 0:03:11]} 24. f6 {[%emt 0:02:16]} Re8 {[%emt 0:02:21]} 25. Bg1 {[%emt 0:13:06]} Bf8 {[%emt 0:06:57]} 26. Bxc4 {[%emt 0:00:16]} Nc6 {[%emt 0:00:27]} 27. Bd5 {[%emt 0:04:26] White is more active.} Re5 {[%emt 0:01:29]} 28. h3 {[%emt 0:02:29]} Bb4 {[%emt 0:00:39]} (28... Re8 $16 29. Rf3 Be6) 29. Rd1 $18 {[%emt 0:01:00]} h6 {[%emt 0:01:46] [#]} 30. Bxf7+ $1 {[%emt 0:02:58][%mdl 512]} Kxf7 {[%emt 0:00:04]} 31. Rxd7+ {[%emt 0:00:04]} Kxf6 {[%emt 0:00:04]} 32. Rxb7 {[%emt 0:00:35] And now Rb6 would win.} Kf5 {[%emt 0:01:37]} (32... Ke6 $142 33. Bf2 (33. Rb6 Kd7 $18) 33... Bxc3) 33. Rb6 {[%emt 0:00:50][%csl LRa6,LRc6] Weighted Error Value: White=0.12 (very precise) /Black=0.26 (precise)   Mistake:       	White=1     	Black=3      Inaccurate:     	White=1     	Black=2      OK:         	White=13    	Black=5      Best:        	White=3     	Black=1} 1-0

[Event "AUT Bundesliga 2024-25"]
[Site "Austria"]
[Date "2025.04.03"]
[Round "7.11"]
[White "Lovrinovic, Christian"]
[Black "Lanka, Zigurds"]
[Result "1/2-1/2"]
[Annotator "RC"]
[ECO "E97"]
[WhiteElo "2062"]
[BlackElo "2326"]
[PlyCount "73"]
[EventDate "2024.08.28"]
[EventType "team-tourn"]
[EventCountry "AUT"]
[SourceTitle "playchess.com"]
[Source "ChessBase"]
[SourceQuality "1"]
[TimeControl "40/5400+30:1800+30"]

1. d4 {[%emt 0:00:04]} Nf6 {[%emt 0:00:08]} 2. c4 {[%emt 0:00:05]} g6 {[%emt 0:00:41]} 3. Nc3 {[%emt 0:00:05]} Bg7 {[%emt 0:00:11]} 4. e4 {[%emt 0:00:05]} d6 {[%emt 0:00:10]} 5. Nf3 {[%emt 0:00:21]} O-O {[%emt 0:00:14]} 6. Be2 {[%emt 0:00:03]} e5 {[%emt 0:00:13]} 7. O-O {[%emt 0:00:11]} Nc6 {[%emt 0:00:07]} 8. d5 {[%emt 0:01:07]} Ne7 {[%emt 0:00:18]} 9. b4 {[%emt 0:00:09]} c6 {[%emt 0:01:11]} 10. Bb2 {[%emt 0:14:53]} cxd5 {[%emt 0:02:10]} 11. cxd5 {[%emt 0:00:02]} Ne8 {[%emt 0:00:59]} 12. Rc1 {[%emt 0:02:05]} Bh6 {[%emt 0:01:11]} 13. Rc2 {[%emt 0:01:13]} f5 {[%emt 0:01:50]} 14. Bc1 {[%emt 0:09:53]} Bxc1 {[%emt 0:00:42]} 15. Qxc1 {[%emt 0:00:02]} Nf6 {[%emt 0:02:47]} 16. Ng5 {[%emt 0:22:27]} fxe4 {[%emt 0:02:03]} 17. Ngxe4 {[%emt 0:13:17]} Nxe4 {[%emt 0:02:22]} 18. Nxe4 {[%emt 0:00:06]} Nf5 {[%emt 0:01:43]} 19. Bg4 {[%emt 0:08:36]} Bd7 {[%emt 0:03:37]} 20. Rc7 {[%emt 0:09:38]} Rc8 {[%emt 0:07:06]} 21. Rxc8 {[%emt 0:00:38]} Bxc8 {[%emt 0:00:32]} 22. Bxf5 {[%emt 0:08:15]} Bxf5 {[%emt 0:00:46]} 23. Ng3 {[%emt 0:00:04]} Kg7 {[%emt 0:03:19]} 24. Qe3 {[%emt 0:00:36]} a5 {[%emt 0:03:54]} 25. Qa7 {[%emt 0:04:24]} Bd3 {[%emt 0:06:37]} 26. Rc1 {[%emt 0:00:04]} Rf7 {[%emt 0:04:07]} 27. Qxa5 {[%emt 0:01:29]} Qxa5 {[%emt 0:13:58]} 28. bxa5 {[%emt 0:00:01]} e4 {[%emt 0:01:41]} 29. Re1 {[%emt 0:02:43]} Rc7 {[%emt 0:00:18]} 30. h3 {[%emt 0:00:11]} Rc4 {[%emt 0:02:18]} 31. f3 {[%emt 0:00:40]} exf3 {[%emt 0:03:11]} 32. gxf3 {[%emt 0:00:01]} Rc5 {[%emt 0:02:16]} 33. Re7+ {[%emt 0:01:07]} Kh6 {[%emt 0:01:50]} 34. Rxb7 {[%emt 0:00:08]} Rxd5 {[%emt 0:07:13]} 35. Ne4 {[%emt 0:01:09]} Bxe4 {[%emt 0:01:07]} 36. fxe4 {[%emt 0:00:01]} Rxa5 {[%emt 0:00:08]} 37. Rb6 {[%emt 0:00:21]} 1/2-1/2

[Event "AUT Bundesliga 2024-25"]
[Site "Austria"]
[Date "2025.04.03"]
[Round "7.12"]
[White "Schiestl, Josef"]
[Black "Karelina, Polina"]
[Result "1/2-1/2"]
[Annotator "NA RC"]
[ECO "B08"]
[WhiteElo "2068"]
[BlackElo "1903"]
[PlyCount "36"]
[EventDate "2024.08.28"]
[EventType "team-tourn"]
[EventCountry "AUT"]
[SourceTitle "playchess.com"]
[Source "ChessBase"]
[SourceQuality "1"]
[TimeControl "40/5400+30:1800+30"]

1. e4 {[%emt 0:00:01]} d6 {[%emt 0:00:06]} 2. d4 {[%emt 0:00:12]} Nf6 {[%emt 0:00:15]} 3. Nc3 {[%emt 0:00:13]} g6 {[%emt 0:00:12]} 4. Nf3 {[%emt 0:00:34]} Bg7 {[%emt 0:00:17]} 5. Be2 {[%emt 0:00:11]} O-O {[%emt 0:04:37]} 6. O-O {[%emt 0:00:08]} c6 {[%emt 0:02:48]} 7. h3 {[%emt 0:05:39]} Qc7 {[%emt 0:04:23]} 8. Be3 {[%emt 0:05:56]} e5 {[%emt 0:08:21]} 9. Re1 {[%emt 0:05:23]} Nbd7 {[%emt 0:03:53]} 10. Qd2 {[%emt 0:02:47]} b5 {[%emt 0:05:46]} 11. a3 {[%emt 0:00:52]} a6 {[%emt 0:01:04]} 12. dxe5 {[%emt 0:11:35]} dxe5 {[%emt 0:02:15]} 13. Nh2 {[%emt 0:23:14]} Bb7 {[%emt 0:01:59]} 14. Rad1 {[%emt 0:01:00]} Rad8 {[%emt 0:02:20]} 15. Qd6 {[%emt 0:04:30]} Ne8 {[%emt 0:10:03]} 16. Qd2 {[%emt 0:00:26]} Nef6 {[%emt 0:02:23]} 17. Qd6 {[%emt 0:02:13]} Ne8 {[%emt 0:02:54]} 18. Qd2 {[%emt 0:00:13]} Nef6 {[%emt 0:00:15]} 1/2-1/2

[Event "AUT Bundesliga 2024-25"]
[Site "Austria"]
[Date "2025.04.03"]
[Round "7.13"]
[White "Vachier-Lagrave, Maxime"]
[Black "Kadric, Denis"]
[Result "1-0"]
[Annotator "TA"]
[ECO "C50"]
[WhiteElo "2722"]
[BlackElo "2533"]
[PlyCount "65"]
[EventDate "2024.08.28"]
[EventType "team-tourn"]
[EventCountry "AUT"]
[SourceTitle "playchess.com"]
[Source "ChessBase"]
[SourceQuality "1"]
[TimeControl "40/5400+30:1800+30"]

{[%evp 15,65,29,52,34,22,31,32,18,15,16,22,13,10,0,0,1,9,12,16,22,31,23,25,0,0,0,0,0,0,0,0,0,66,90,91,112,112,92,97,97,105,97,231,224,288,284,302,282,287,279,306,310]} 1. e4 {[%emt 0:00:02]} d6 {[%emt 0:00:04]} 2. d4 {[%emt 0:00:04]} Nf6 {[%emt 0:00:02]} 3. Nc3 {[%emt 0:00:03]} e5 {[%emt 0:00:02]} 4. Nf3 {[%emt 0:00:03]} Nbd7 {[%emt 0:00:02][%cal Bb8d7,Bd7e5,Be5g6][%mdl 32]} 5. Bc4 {[%emt 0:00:05]} Be7 {[%emt 0:00:02]} 6. O-O {[%emt 0:00:06]} O-O {[%emt 0:00:02]} 7. Re1 {[%emt 0:00:05]} exd4 {[%emt 0:01:05]} 8. Nxd4 {[%emt 0:00:08]} Ne5 {[%emt 0:00:04]} 9. Bf1 {[%emt 0:01:46] C50: Hungarian Defence and Giuoco Pianissimo.} Re8 {[%emt 0:00:04]} 10. h3 {[%emt 0:01:51]} Ng6 {[%emt 0:00:06] 10...h6 is the modern continuation.} 11. b3 {[%emt 0:06:16] White is slightly better.} Bf8 {[%emt 0:01:55]} 12. Bb2 $146 {[%emt 0:01:49]} (12. Bg5 h6 13. Bxf6 Qxf6 14. Nd5 Qd8 15. Bb5 Bd7 16. Bxd7 Qxd7 17. c4 Rab8 18. Nf5 {0-1 Krapivin,A (2378)-Palekha,A (2421) Serpukhov-A 2003 (11)}) 12... Bd7 {[%emt 0:01:22]} 13. Qd2 {[%emt 0:03:20]} c6 {[%emt 0:00:42]} 14. a4 {[%emt 0:03:33]} Qc7 {[%emt 0:03:55]} 15. g3 {[%emt 0:05:21]} Rad8 {[%emt 0:07:17]} 16. Bg2 {[%emt 0:00:29]} a6 {[%emt 0:20:24]} 17. a5 {[%emt 0:09:49]} d5 {[%emt 0:00:08]} 18. exd5 {[%emt 0:00:05]} Rxe1+ {[%emt 0:05:41]} 19. Rxe1 {[%emt 0:09:03]} Bb4 {[%emt 0:04:22]} 20. dxc6 {[%emt 0:03:51]} Bxc6 {[%emt 0:01:13]} 21. Bxc6 {[%emt 0:00:07]} bxc6 {[%emt 0:00:08]} 22. Qe3 {[%emt 0:00:14]} Qd7 {[%emt 0:06:09][%cal Od8e8]} 23. Nf3 {[%emt 0:04:09]} Bxa5 {[%emt 0:07:01]} (23... Qxh3 $2 24. Qb6 Bxa5 25. Qxa5 $18) (23... Nd5 $11 24. Qd4 c5) 24. Qc5 $14 {[%emt 0:07:18]} Qc7 {[%emt 0:09:26] aiming for ...Bb6.} 25. Kg2 {[%emt 0:02:38]} Nd5 {[%emt 0:11:23]} 26. Nxd5 {[%emt 0:02:09]} cxd5 {[%emt 0:00:02]} 27. Qxc7 {[%emt 0:02:39]} (27. Qd4 {is more complex.} f6 28. Ra1 Bb6 29. Qb4) 27... Bxc7 {[%emt 0:00:01]} 28. Nd4 {[%emt 0:01:10]} Rc8 {[%emt 0:09:26] [#] Black cannot hold the game after this.} (28... a5 $16 {is a better defense.} 29. Nf5 f6) 29. Nf5 $1 $18 {[%emt 0:02:08]} f6 {[%emt 0:00:58][%cal Bf7f6,Bf6e5][%mdl 32] [#]} 30. Re7 {[%emt 0:03:43][%mdl 512] White has a decisive advantage.} Be5 {[%emt 0:04:58]} (30... Kh8 31. Rxg7) 31. Rxg7+ {[%emt 0:00:06]} Kh8 {[%emt 0:00:02]} 32. Bxe5 {[%emt 0:00:09]} fxe5 {[%emt 0:00:03]} 33. Ra7 {[%emt 0:00:06] Weighted Error Value: White=0.05 (flawless) /Black=0.15 (very precise)   Mistake:       	---       	Black=2      OK:         	White=12    	Black=5      Best:        	White=1     	Black=2      Strong:       	White=1     	---        Brilliant:      	White=1     	---} 1-0